Cogmind - Beta 11.1 @@@ ROGUE MODE // 2022.05.28 @ 17:07:50 Player: ChromeKnight Result: Destroyed by Lightning with EMDS Performance ------------- Evolutions (4) 2000 Regions Visited (15) 3000 Robots Destroyed (195) 975 Value Destroyed (5870) 5870 Prototype IDs (14) 280 Alien Tech Used (0) 0 Bonus (3921) 3921 TOTAL SCORE: 16046 Bonus ------- High Alert Combat Kills 582 Follower Combat Kills 2782 Network Hubs Disabled 600 Met R17 at Cetus 500 Friendly Fire -543 Cogmind --------- Core Integrity 0/850 Matter 205/300 Energy 58/100 System Corruption 33% Temperature Cool (0) Movement Core (50) Location -6/Hub_04(d) Parts ------- > --- POWER (1) -------- (None) > --- PROPULSION (3) --- (None) > --- UTILITY (8) ------ Improved Signal Interpreter Improved Targeting Computer Improved Weapon Shielding > --- WEAPON (3) ------- (None) > --- INVENTORY (5) ---- Experimental Sensor Array Advanced Particle Charger Hacking Drone Bay (1/1) Gatling Laser Peak State ------------ > --- POWER ------------ Enhanced Nuclear Core > --- PROPULSION ------- Spiked Medium Treads Spiked Medium Treads Spiked Medium Treads > --- UTILITY ---------- Improved Cooling System Large Storage Unit Experimental Sensor Array Improved Signal Interpreter Improved Targeting Computer Weapon Cycler Improved Heavy Armor Plating > --- WEAPON ----------- Advanced Variable Charge Gun Molecular Deconstructor > --- INVENTORY -------- Improved Cooling System Experimental Sensor Array Improved Particle Charger Improved Weapon Shielding Improved Medium Armor Plating Centrium Medium Armor Plating Centrium Medium Armor Plating Hacking Drone Bay Gatling Laser Gatling Laser Gatling Laser Gatling Laser Gatling Laser Gatling Laser Gatling Laser [Rating: 87] Favorites ----------- Power Micro Nuclear Core Engine Ion Engine Power Core Micro Nuclear Core Propulsion Spiked Medium Treads Treads Spiked Medium Treads Leg Carbon-fiber Leg Hover Unit Gravmag System Utility Large Storage Unit Device Experimental Sensor Array Storage Large Storage Unit Processor Improved Signal Interpreter Hackware Hacking Suite Protection Makeshift Armor Plating Weapon Advanced Assault Cannon Energy Gun Advanced Variable Charge Gun Energy Cannon Neutron Cannon Ballistic Gun Assault Rifle Ballistic Cannon Advanced Assault Cannon Launcher Heavy Rocket Launcher Special Weapon Molecular Deconstructor Impact Weapon Shock Maul Slashing Weapon Katana Build | -11 -10 -10 -9 -9 -8 -7 -7 -7 -7 -6 -6 -6 -6 -6 -6 ------- Run | Scr Mat Min Mat Sto Mat Fac Low Low Zio Pro Fac Ext Cet Arc Hub Slots Evolved 8 | . . . 2 . 2 2 . . . . 2 . . . . Power . | . . . . . . . . . . . . . . . . Propulsion 1 | . . . . . 1 . . . . . . . . . . Utility 6 | . . . 2 . 1 2 . . . . 1 . . . . Weapon 1 | . . . . . . . . . . . 1 . . . . Parts Attached 207 | 7 11 8 16 18 47 42 2 3 11 3 14 1 7 2 15 Power 20 | 1 2 1 1 2 8 4 . . . . 1 . . . . Engine 9 | 1 2 1 1 2 2 . . . . . . . . . . Core 11 | . . . . . 6 4 . . . . 1 . . . . Reactor . | . . . . . . . . . . . . . . . . Propulsion 57 | 2 4 2 3 7 13 14 . 1 3 . 4 . . . 4 Treads 20 | 2 4 2 3 4 . . . . 3 . 2 . . . . Leg 33 | . . . . 3 13 10 . 1 . . 2 . . . 4 Wheel . | . . . . . . . . . . . . . . . . Hover 4 | . . . . . . 4 . . . . . . . . . Flight . | . . . . . . . . . . . . . . . . Utility 62 | 2 1 2 7 1 11 12 . 2 4 . 5 1 6 . 8 Device 20 | 1 . 2 . . 5 5 . 1 1 . 1 . 1 . 3 Storage 2 | 1 1 . . . . . . . . . . . . . . Processor 9 | . . . 3 . 3 1 . . . . . . 2 . . Hackware 1 | . . . . . . 1 . . . . . . . . . Protection 30 | . . . 4 1 3 5 . 1 3 . 4 1 3 . 5 Artifact . | . . . . . . . . . . . . . . . . Weapon 68 | 2 4 3 5 8 15 12 2 . 4 3 4 . 1 2 3 Energy Gun 17 | . . 1 . . 6 6 . . 1 . . . 1 . 2 Energy Cannon 3 | . . . . . 1 . . . . . 1 . . . 1 Ballistic Gun 27 | 2 3 1 3 7 3 3 . . 2 1 . . . 2 . Ballistic Cannon 6 | . . . 1 . . . 2 . 1 1 1 . . . . Launcher 8 | . 1 1 . . 5 . . . . . 1 . . . . Special Weapon 2 | . . . . . . . . . . 1 1 . . . . Impact Weapon 4 | . . . . 1 . 3 . . . . . . . . . Slashing Weapon 1 | . . . 1 . . . . . . . . . . . . Piercing Weapon . | . . . . . . . . . . . . . . . . Special Melee Weapon . | . . . . . . . . . . . . . . . . Unidentified Prototypes 14 | . . 1 1 2 2 1 . . 1 1 1 . 2 . 2 Parts Lost 43 | . . 1 . 4 17 5 . 3 . . 1 . . 1 11 Power 6 | . . . . 2 2 1 . . . . . . . . 1 Propulsion 12 | . . . . . 5 2 . 1 . . . . . . 4 Utility 13 | . . . . 1 4 1 . 2 . . . . . . 5 Weapon 12 | . . 1 . 1 6 1 . . . . 1 . . 1 1 Highest Loss Streak 9 | . . 1 . 2 3 4 . 2 . . 1 . . 1 9 To Critical Strikes . | . . . . . . . . . . . . . . . . Average Slot Usage (%) 92 | . 99 99 97 95 83 93 88 91 99 99 91 85 86 90 91 Engine 2 | . 13 14 11 9 1 1 . . . . . . . . . Core 4 | . . . . . 4 3 7 7 7 7 6 6 6 6 5 Treads 11 | . 27 28 22 18 1 . . . 1 23 19 20 20 20 4 Leg 10 | . . . . 3 21 16 23 23 21 . . . . . 14 Device 11 | . 14 14 5 . 4 5 7 8 15 15 19 20 20 20 19 Storage 8 | . 14 14 11 11 9 7 7 7 7 7 6 6 6 6 5 Processor 15 | . . . 11 22 23 26 15 15 15 15 13 13 13 13 13 Hackware 1 | . . . . . . 3 7 5 . . . . . . . Protection 7 | . . . 13 9 4 6 7 7 14 15 9 5 6 6 6 Energy Gun 2 | . . 10 4 . 5 5 2 . . . . . 1 6 5 Ballistic Gun 7 | . 27 16 6 16 5 8 . . . 6 3 . . 10 7 Ballistic Cannon 4 | . . . . . . . 9 15 14 6 6 6 4 . . Naked Turns . | . . . . . . . . . . . . . . . . Heaviest Build 66 | 15 30 31 37 36 36 55 59 59 53 47 65 61 61 62 66 Greatest Support 84 | 40 46 46 46 46 40 48 48 51 84 84 84 84 84 84 84 Greatest Overweight (x) 7 | 4 . . . 3 3 3 1 1 1 . 2 . . . 7 Average Overweight (x) . | . . . . . . . 1 . . . . . . . . Largest Inventory Capacity 15 | 8 15 15 15 15 15 15 15 15 15 15 15 15 15 15 15 Average Capacity 14 | 7 10 15 15 15 15 15 15 15 15 15 15 15 15 15 14 Most Carried 15 | 2 15 15 15 15 15 15 15 15 15 15 15 15 15 15 15 Average Carried 14 | 1 8 14 14 14 14 14 15 14 13 14 14 15 15 15 14 Final Capacity 15 | 8 15 15 15 15 15 15 15 15 15 15 15 15 15 15 5 Final Carried 15 | 2 15 15 15 15 15 15 15 12 15 15 15 15 15 15 4 Class Distribution -------------------- 48% | Mutant 17% | Scavenger-Mutant 9% | Derelict-Mutant 7% | Scavenger-Skirmisher 6% | Commander-Mutant 5% | Skirmisher 3% | Commander-Skirmisher Dominant Class ---------------- Mutant | -10/Materials Mutant | -10/Mines Scavenger-Mutant | -9/Materials Scavenger-Mutant | -9/Storage Mutant | -8/Materials Mutant | -7/Factory Mutant | -7/Lower Caves Mutant | -7/Lower Caves Mutant | -7/Zion Derelict-Mutant | -6/Proximity Caves Skirmisher | -6/Factory Commander-Mutant | -6/Extension Commander-Skirmisher | -6/Cetus Scavenger-Skirmisher | -6/Archives Scavenger-Skirmisher | -6/Hub_04(d) Resources | -11 -10 -10 -9 -9 -8 -7 -7 -7 -7 -6 -6 -6 -6 -6 -6 ----------- Run | Scr Mat Min Mat Sto Mat Fac Low Low Zio Pro Fac Ext Cet Arc Hub Matter Collected 5414 | 282 273 281 229 418 1095 951 31 287 128 100 303 489 133 102 312 Remotely 32 | . . . . . 32 . . . . . . . . . . Salvage Created 7137 | 52 436 282 570 890 1962 994 55 110 . 39 352 203 . 71 1121 Parts 436 | 6 41 28 32 54 109 52 . 6 . 3 17 9 . 7 72 Haulers Intercepted 11 | . 1 . 1 5 3 1 . . . . . . . . . Recyclers Shooed 9 | . . . 2 1 4 1 . . . . . . . . 1 Parts Field Recycled . | . . . . . . . . . . . . . . . . Retrieved Matter . | . . . . . . . . . . . . . . . . Parts Self-Destructed 42 | . . . . . . . 2 13 5 22 . . . . . Prevented . | . . . . . . . . . . . . . . . . Kills | -11 -10 -10 -9 -9 -8 -7 -7 -7 -7 -6 -6 -6 -6 -6 -6 ------- Run | Scr Mat Min Mat Sto Mat Fac Low Low Zio Pro Fac Ext Cet Arc Hub Combat Hostiles Destroyed 125 | . 9 8 11 15 35 21 . 5 . 1 4 5 . . 11 Melee 12 | . . . 7 5 . . . . . . . . . . . Guns 77 | . 8 7 1 10 25 19 . . . . 1 . . . 6 Cannons 16 | . . . 3 . . . . 5 . 1 1 1 . . 5 AOE 14 | . 1 1 . . 10 2 . . . . . . . . . Classes Destroyed 17 | 1 5 2 3 1 1 1 1 1 . . . . . . 1 Worker 13 | . . . . 1 8 . . . . . 1 . . . 3 Builder 12 | . 2 1 1 . 4 . . . . . . 1 . . 3 Tunneler 11 | 2 1 2 . . 5 1 . . . . . . . . . Hauler 11 | . 1 . 1 5 3 1 . . . . . . . . . Recycler 13 | . 2 1 . . 5 . . . . . 2 . . . 3 Minesweeper 1 | . . . . . . . . 1 . . . . . . . Operator 7 | . . . 1 . 3 1 . . . . . . . 2 . Watcher 5 | . 2 . . . 2 1 . . . . . . . . . Swarmer 26 | . 9 3 . 4 3 4 . 3 . . . . . . . Grunt 53 | . . 4 7 3 26 10 . 1 . . . . . . 2 Brawler 1 | . . . . . 1 . . . . . . . . . . Duelist 1 | . . . 1 . . . . . . . . . . . . Sentry 30 | . . . 3 8 6 3 . . . . 1 5 . . 4 Hunter 1 | . . . . . . . . . . . . . . . 1 Programmer 13 | . . . . . . 4 . 1 . 1 3 . . . 4 Samaritan 1 | . . . . . . . 1 . . . . . . . . Assembled 1 | . . 1 . . . . . . . . . . . . . Butcher 1 | . . . . . . . . . . . 1 . . . . Best Kill Streak 11 | 1 4 7 3 4 11 4 . 3 . 1 1 1 . 1 7 Combat Bots Only 6 | . 3 4 3 3 6 4 . 3 . 1 1 1 . . 2 Max Kills in Single Turn 5 | 1 2 3 1 1 3 2 1 1 . 1 2 1 . 1 5 Gunslinging . | . . . . . . . . . . . . . . . . Exploded 2 | . 1 1 . . 2 2 . . . . . . . . . Melee 1 | . . . 1 1 . . . . . . . . . . . Uniques/NPCs Destroyed . | . . . . . . . . . . . . . . . . Combat | -11 -10 -10 -9 -9 -8 -7 -7 -7 -7 -6 -6 -6 -6 -6 -6 -------- Run | Scr Mat Min Mat Sto Mat Fac Low Low Zio Pro Fac Ext Cet Arc Hub Damage Taken 13116 | . 305 367 884 1051 2666 2527 . 642 . 78 580 502 482 92 2940 Core 2136 | . 13 47 112 223 494 325 . 51 . . 19 36 36 . 780 Absorbed by Shields 185 | . . . . . . . . . . . . 129 56 . . Redirected to Shielding 385 | . . . 97 103 152 . . . . . . . . . 33 Regen/Repaired (Parts) 1094 | . . . . . . . . . 868 . . 226 . . . Core Remaining (%) 49 | 100 . 76 . 16 10 . . . . 46 . . . . . Volleys Fired 578 | 3 35 22 21 39 158 106 12 21 1 12 27 49 7 8 57 Largest 3 | 2 2 2 2 2 2 2 1 2 1 2 2 2 2 3 3 Hottest 363 | 40 50 60 75 46 88 138 69 96 48 81 85 53 80 146 363 Shots Fired 994 | 6 70 42 30 78 240 191 12 42 1 15 44 63 14 20 126 Gun 729 | 6 67 39 21 78 207 191 12 . . 3 8 . 1 19 77 Cannon 161 | . . . 9 . . . . 42 1 11 28 14 7 . 49 Launcher 40 | . 3 3 . . 33 . . . . . 1 . . . . Special 64 | . . . . . . . . . . 1 7 49 6 1 . Kinetic 575 | 6 67 34 20 78 108 105 . 42 1 14 28 14 7 11 40 Thermal 283 | . . 5 10 . 99 54 12 . . . 8 . 1 8 86 Explosive 40 | . 3 3 . . 33 . . . . . 1 . . . . Electromagnetic 32 | . . . . . . 32 . . . . . . . . . Robot Hit Streak 25 | 6 7 7 9 21 25 12 11 7 . 4 7 7 10 5 14 Robot Miss Streak 10 | . 7 3 1 1 10 4 1 3 . 1 1 2 4 2 4 Penetration Max 1 | . . . . . . . . . . . . . . . 1 Secondary Targets 5 | . 1 2 . 1 . . . . . . . . . . 1 Max Gunslinging Chain 1 | . 1 1 . 1 . . . . . . . . . . 1 Shots Hit Robots 641 | 6 33 24 51 75 156 134 11 18 . 5 14 29 7 11 67 Core Hits 315 | 3 21 17 19 28 118 45 2 5 . 2 8 4 2 7 34 Critical Kills 2 | . . . . . 1 1 . . . . . . . . . Critical Parts Destroyed 2 | . . . . . . 1 . . . . . . . . 1 Critical Strikes 17 | . . . . 2 5 4 1 1 . . 2 1 . . 1 Burn 6 | . . . . . 4 1 1 . . . . . . . . Destroy 4 | . . . . . 1 2 . . . . . . . . 1 Blast 4 | . . . . . . . . 1 . . 2 1 . . . Corrupt 1 | . . . . . . 1 . . . . . . . . . Sever 2 | . . . . 2 . . . . . . . . . . . Melee Attacks 71 | . . . 36 27 . 8 . . . . . . . . . Impact 8 | . . . . . . 8 . . . . . . . . . Slashing 63 | . . . 36 27 . . . . . . . . . . . Piercing . | . . . . . . . . . . . . . . . . Sneak Attacks 7 | . . . 3 4 . . . . . . . . . . . Combat Hostiles . | . . . . . . . . . . . . . . . . Follow-up Attacks . | . . . . . . . . . . . . . . . . Damage Inflicted 16898 | 77 565 627 1303 1484 4787 3195 205 465 . 150 447 360 123 304 2806 Guns 9129 | 77 463 357 216 941 2384 2720 205 . . 80 30 . 21 304 1331 Cannons 2167 | . . . 125 . . . . 465 . 70 185 360 102 . 860 Explosions 4097 | . 102 270 . . 2403 475 . . . . 232 . . . 615 Melee 1505 | . . . 962 543 . . . . . . . . . . . Ramming . | . . . . . . . . . . . . . . . . Kinetic 7013 | 77 463 324 256 941 1273 1604 . 465 . 150 215 360 102 146 637 Thermal 4160 | . . 33 85 . 1111 784 205 . . . 209 . 21 158 1554 Explosive 3205 | . 102 270 . . 2376 434 . . . . 23 . . . . Electromagnetic 1015 | . . . . . 27 373 . . . . . . . . 615 Impact . | . . . . . . . . . . . . . . . . Slashing 1505 | . . . 962 543 . . . . . . . . . . . Piercing . | . . . . . . . . . . . . . . . . Highest Corruption 32 | . . . . 1 4 2 2 3 3 1 6 6 6 6 32 Average Corruption 4 | . . . . 1 4 1 2 2 3 1 5 6 6 6 8 Corruption Purged . | . . . . . . . . . . . . . . . . Corruption Blocked . | . . . . . . . . . . . . . . . . Effects 197 | . . . . 6 7 10 11 15 8 1 15 46 13 9 56 Message Errors 54 | . . . . 4 1 3 3 4 4 1 3 14 3 . 14 Matter Fused 54 | . . . . 1 3 3 2 4 1 . 2 12 4 3 19 Heat Flow Errors 19 | . . . . . . . 3 1 1 . 3 2 2 . 7 Energy Discharges 20 | . . . . . . 1 . 2 1 . 1 6 2 3 4 Data Loss (minor) 28 | . . . . . . 1 2 4 1 . 1 8 1 2 8 Data Loss (major) 8 | . . . . . 1 1 1 . . . . 3 . 1 1 Misfires 8 | . . . . 1 2 . . . . . 3 . 1 . 1 Alerts 3 | . . . . . . 1 . . . . 1 1 . . . Weapon Failures 3 | . . . . . . . . . . . 1 . . . 2 Overload Shots 7 | . . . . . . . . . . . . . . . 7 Effects 1 | . . . . . . . . . . . . . . . 1 Energy Bleed 1 | . . . . . . . . . . . . . . . 1 Overflow Damage 374 | . . 2 13 26 102 63 . 17 . 5 106 . . . 40 Projectiles 55 | . . . . . . . . 17 . 5 . . . . 33 Explosions 280 | . . 2 . . 102 63 . . . . 106 . . . 7 Melee 39 | . . . 13 26 . . . . . . . . . . . Knockbacks 6 | . . . 2 . . . . 2 . . 1 . 1 . . Impact . | . . . . . . . . . . . . . . . . Kinetic 6 | . . . 2 . . . . 2 . . 1 . 1 . . Secondary . | . . . . . . . . . . . . . . . . Self-Inflicted Damage 677 | . 39 49 . . 240 66 . . . . 203 . . . 80 Shots 16 | . 1 2 . . 8 1 . . . . 3 . . . 1 Rammed . | . . . . . . . . . . . . . . . . Targets Rammed 1 | . . . . . . 1 . . . . . . . . . Kicked 1 | . . . . . . 1 . . . . . . . . . Crushed . | . . . . . . . . . . . . . . . . Highest Temperature 531 | . . 5 171 23 218 495 340 502 114 . 176 162 153 88 531 Average Temperature 108 | . . 2 59 8 44 140 137 137 71 . 50 85 59 40 157 Received Heat Transfer 3159 | . . 132 285 318 1215 564 . 171 . 12 . 126 57 9 270 Effects 14 | . . . . . . 4 . 1 . . . . . . 9 Shutdowns 7 | . . . . . . 2 . 1 . . . . . . 4 Energy Bleed 1 | . . . . . . . . . . . . . . . 1 Interference 1 | . . . . . . . . . . . . . . . 1 Short Circuit 1 | . . . . . . 1 . . . . . . . . . Damage (minor) 1 | . . . . . . 1 . . . . . . . . . Damage (major) 3 | . . . . . . . . . . . . . . . 3 Siege Activations . | . . . . . . . . . . . . . . . . Robots Corrupted . | . . . . . . . . . . . . . . . . Combat Hostiles . | . . . . . . . . . . . . . . . . Parts Fried 3 | . . . . . . 1 . . . . . . . . 2 Impact Corruptions . | . . . . . . . . . . . . . . . . Robots Melted 1 | . . . . . . . 1 . . . . . . . . Combat Hostiles . | . . . . . . . . . . . . . . . . Parts Melted 16 | . . . 1 . 5 7 1 . . . 1 . . 1 . Heat Transferred 6222 | . . 75 200 . 2655 1493 481 . . . 200 . 37 185 896 Parts Sabotaged . | . . . . . . . . . . . . . . . . Parts Stolen . | . . . . . . . . . . . . . . . . Parts Stripped . | . . . . . . . . . . . . . . . . Power Chain Reactions 1 | . . . . . . 1 . . . . . . . . . Missiles Intercepted . | . . . . . . . . . . . . . . . . Alert | -11 -10 -10 -9 -9 -8 -7 -7 -7 -7 -6 -6 -6 -6 -6 -6 ------- Run | Scr Mat Min Mat Sto Mat Fac Low Low Zio Pro Fac Ext Cet Arc Hub Peak Influence 1079 | 10 278 264 170 248 1079 642 . . . . 134 568 830 526 842 Initial 490 | . 6 58 . 23 85 490 . . . . . . 317 332 184 Average 274 | 3 95 125 68 153 492 372 . . . . 21 178 562 478 464 Maximum Alert Level 3 | . 1 1 . 1 3 2 . . . . . 2 3 2 3 Low Security (%) 43 | 100 91 71 100 73 13 . . . . . 100 53 . . 4 Level 1 34 | . 8 28 . 26 48 73 . . . . . 39 47 12 23 Level 2 15 | . . . . . 7 26 . . . . . 7 14 87 64 Level 3 6 | . . . . . 30 . . . . . . . 37 . 7 Level 4 . | . . . . . . . . . . . . . . . . Level 5 . | . . . . . . . . . . . . . . . . High Security . | . . . . . . . . . . . . . . . . Max Security . | . . . . . . . . . . . . . . . . Squads Dispatched 33 | . . . 2 3 6 10 . . . . 5 2 . . 5 Investigation 6 | . . . 1 . 1 2 . . . . 1 1 . . . Extermination 12 | . . . . . . 6 . . . . 3 . . . 3 Reinforcement 10 | . . . 1 . 4 1 . . . . 1 1 . . 2 Assault 1 | . . . . . 1 . . . . . . . . . . Garrison 4 | . . . . 3 . 1 . . . . . . . . . Intercept . | . . . . . . . . . . . . . . . . Searches Triggered . | . . . . . . . . . . . . . . . . Construction Impeded 1 | . . . . . 1 . . . . . . . . . . Haulers Reinforced . | . . . . . . . . . . . . . . . . Active Scanning Responses . | . . . . . . . . . . . . . . . . Cargo Convoy Interrupts . | . . . . . . . . . . . . . . . . Stealth | -11 -10 -10 -9 -9 -8 -7 -7 -7 -7 -6 -6 -6 -6 -6 -6 --------- Run | Scr Mat Min Mat Sto Mat Fac Low Low Zio Pro Fac Ext Cet Arc Hub Distress Signals 20 | . . . 1 1 8 . . . . . . 6 2 . 2 Communications Jammed . | . . . . . . . . . . . . . . . . Distress Signals . | . . . . . . . . . . . . . . . . Times Spotted 270 | . 16 7 13 27 65 29 . 8 . 6 6 28 21 8 36 Peak Tracking Total 9 | . 4 4 4 9 7 5 . 4 . 3 1 5 7 1 9 Tactical Retreats 12 | . . . . 1 6 3 . . . . . 1 . . 1 Traps | -11 -10 -10 -9 -9 -8 -7 -7 -7 -7 -6 -6 -6 -6 -6 -6 ------- Run | Scr Mat Min Mat Sto Mat Fac Low Low Zio Pro Fac Ext Cet Arc Hub Traps Triggered 13 | . 1 . 1 3 4 1 . . . . 2 . . . 1 Indirectly 1 | . . . . . 1 . . . . . . . . . . Trap Hack Attempts . | . . . . . . . . . . . . . . . . Triggered . | . . . . . . . . . . . . . . . . Disarmed . | . . . . . . . . . . . . . . . . Reprogrammed . | . . . . . . . . . . . . . . . . Reused 2 | . . . . . . . . 2 . . . . . . . Traps Extracted . | . . . . . . . . . . . . . . . . Installed 9 | . . . . . . . . 9 . . . . . . . Triggered 9 | . . . . . . . 2 7 . . . . . . . Machines | -11 -10 -10 -9 -9 -8 -7 -7 -7 -7 -6 -6 -6 -6 -6 -6 ---------- Run | Scr Mat Min Mat Sto Mat Fac Low Low Zio Pro Fac Ext Cet Arc Hub Machines Disabled 47 | . 1 . . . 14 7 . . . . 5 2 2 1 15 Max in Single Turn 5 | . 1 . . . 2 2 . . . . 5 . 1 . 5 Garrison Access 4 | . . . . 1 1 1 . . . . . . . . 1 Network Hub 3 | . . . . . . . . . . . . . . . 3 Machines Sabotaged . | . . . . . . . . . . . . . . . . Garrisons Compromised . | . . . . . . . . . . . . . . . . Overloaded Fab Kills . | . . . . . . . . . . . . . . . . Hacking | -11 -10 -10 -9 -9 -8 -7 -7 -7 -7 -6 -6 -6 -6 -6 -6 --------- Run | Scr Mat Min Mat Sto Mat Fac Low Low Zio Pro Fac Ext Cet Arc Hub Machines Accessed 37 | . 5 . 2 6 5 6 . . . . 5 1 1 1 5 Terminals 23 | . 5 . 2 5 3 1 . . . . 2 . 1 . 4 Fabricators 4 | . . . . . . 2 . . . . 2 . . . . Repair Stations 2 | . . . . . . 1 . . . . . 1 . . . Recycling Units . | . . . . . . . . . . . . . . . . Scanalyzers 2 | . . . . . 1 1 . . . . . . . . . Garrison Access 5 | . . . . 1 1 1 . . . . 1 . . . 1 Total Hacks 100 | . 9 . 5 9 14 14 . . . . 7 3 1 25 13 Successful 64 | . 5 . 3 6 9 9 . . . . 2 2 . 25 3 Failed 36 | . 4 . 2 3 5 5 . . . . 5 1 1 . 10 Catastrophic 6 | . . . . . 1 . . . . . 2 . 1 . 2 Database Lockouts . | . . . . . . . . . . . . . . . . Manual 37 | . 6 . 5 2 7 3 . . . 2 3 . 1 1 7 Terminals 47 | . 9 . 5 8 7 3 . . . . 3 . 1 . 11 Fabricators 8 | . . . . . . 6 . . . . 2 . . . . Repair Stations 5 | . . . . . . 2 . . . . . 3 . . . Recycling Units . | . . . . . . . . . . . . . . . . Scanalyzers 7 | . . . . . 5 2 . . . . . . . . . Garrison Access 8 | . . . . 1 2 1 . . . . 2 . . . 2 Terminal Hacks 32 | . 1 . . 4 . . . . . . 1 . . 25 1 Record 26 | . . . . . . . . . . . . . . 25 1 Robot Analysis 1 | . 1 . . . . . . . . . . . . . . Open Door 5 | . . . . 4 . . . . . . 1 . . . . Fabricator Hacks 5 | . . . . . . 4 . . . . 1 . . . . Load Schematic 3 | . . . . . . 2 . . . . 1 . . . . Build 2 | . . . . . . 2 . . . . . . . . . Repair Station Hacks 3 | . . . . . . 1 . . . . . 2 . . . Scan Component 1 | . . . . . . . . . . . . 1 . . . Repair 1 | . . . . . . . . . . . . 1 . . . Refit 1 | . . . . . . 1 . . . . . . . . . Recycling Unit Hacks . | . . . . . . . . . . . . . . . . Scanalyzer 4 | . . . . . 3 1 . . . . . . . . . Insert Component 2 | . . . . . 1 1 . . . . . . . . . Analyze 2 | . . . . . 2 . . . . . . . . . . Garrison Access Hacks 4 | . . . . 1 1 1 . . . . . . . . 1 Seal Access 4 | . . . . 1 1 1 . . . . . . . . 1 Unauthorized Hacks 16 | . 4 . 3 1 5 2 . . . . . . . . 1 Terminals 16 | . 4 . 3 1 5 2 . . . . . . . . 1 Botnet 12 | . 4 . 2 1 3 1 . . . . . . . . 1 Operators 4 | . . . 1 . 2 1 . . . . . . . . . Fabricators . | . . . . . . . . . . . . . . . . Repair Stations . | . . . . . . . . . . . . . . . . Recycling Units . | . . . . . . . . . . . . . . . . Scanalyzers . | . . . . . . . . . . . . . . . . Garrison Access . | . . . . . . . . . . . . . . . . Data Cores Recovered 1 | . . . . . . 1 . . . . . . . . . Used . | . . . . . . . . . . . . . . . . Hacking Detections 24 | . 3 . 1 3 4 3 . . . . 4 1 1 . 4 Full Trace Events 6 | . 1 . . . 1 2 . . . . 1 1 . . . Feedback Events . | . . . . . . . . . . . . . . . . Feedback Blocked . | . . . . . . . . . . . . . . . . Robot Schematics Acquired 4 | . . . . . . . . . 4 . . . . . . Robots Built . | . . . . . . . . . . . . . . . . Authchips . | . . . . . . . . . . . . . . . . Time . | . . . . . . . . . . . . . . . . Total Robot Build Rating . | . . . . . . . . . . . . . . . . Part Schematics Acquired 15 | . . . . . 1 . . . 14 . . . . . . Parts Built 2 | . . . . . . 2 . . . . . . . . . Authchips . | . . . . . . . . . . . . . . . . Time 204 | . . . . . . 204 . . . . . . . . . Total Part Build Rating 16 | . . . . . . 16 . . . . . . . . . Parts Repaired 1 | . . . . . . . . . . . . 1 . . . Time 50 | . . . . . . . . . . . . 50 . . . Parts Recycled . | . . . . . . . . . . . . . . . . Recycled Matter . | . . . . . . . . . . . . . . . . Retrieved Matter . | . . . . . . . . . . . . . . . . Retrieved Components . | . . . . . . . . . . . . . . . . Parts Scanalyzed 2 | . . . . . 1 1 . . . . . . . . . Part Schematics Acquired 1 | . . . . . 1 . . . . . . . . . . Parts Damaged . | . . . . . . . . . . . . . . . . Bothacking | -11 -10 -10 -9 -9 -8 -7 -7 -7 -7 -6 -6 -6 -6 -6 -6 ------------ Run | Scr Mat Min Mat Sto Mat Fac Low Low Zio Pro Fac Ext Cet Arc Hub Used RIF Installer . | . . . . . . . . . . . . . . . . Robots Hacked . | . . . . . . . . . . . . . . . . Non-combat . | . . . . . . . . . . . . . . . . Combat . | . . . . . . . . . . . . . . . . Robot Hacks Applied . | . . . . . . . . . . . . . . . . Relay Couplers Released . | . . . . . . . . . . . . . . . . Fabnet Peak Effective % . | . . . . . . . . . . . . . . . . Robots Rewired 9 | . . . . . 1 . . 1 . . . 7 . . . Allies Hacked . | . . . . . . . . . . . . . . . . Hacks Repelled . | . . . . . . . . . . . . . . . . Allies | -11 -10 -10 -9 -9 -8 -7 -7 -7 -7 -6 -6 -6 -6 -6 -6 -------- Run | Scr Mat Min Mat Sto Mat Fac Low Low Zio Pro Fac Ext Cet Arc Hub Total Allies 50 | . . 1 . 10 1 . . 1 5 . . 28 4 . . Largest Group 15 | . . 1 1 10 1 . . 1 5 5 1 15 15 7 4 Highest-Rated Group 801 | . . 31 31 88 16 . . 16 126 126 25 555 801 518 309 Highest-Rated Ally 159 | . . 31 31 16 16 . . 16 31 31 25 159 159 159 96 Total Orders . | . . . . . . . . . . . . . . . . Ally Attacks 458 | . . . 3 70 . . . 8 . 41 1 122 135 29 49 Total Damage 11099 | . . . 20 659 . . . 80 . 795 32 2649 3922 1094 1848 Kills 78 | . . . . 10 . . . 1 . 6 . 23 22 7 9 Allies Corrupted . | . . . . . . . . . . . . . . . . Allies Melted . | . . . . . . . . . . . . . . . . Intel | -11 -10 -10 -9 -9 -8 -7 -7 -7 -7 -6 -6 -6 -6 -6 -6 ------- Run | Scr Mat Min Mat Sto Mat Fac Low Low Zio Pro Fac Ext Cet Arc Hub Robot Analysis Total 1 | . 1 . . . . . . . . . . . . . . Derelict Logs Recovered 6 | . . 1 . . . . 1 2 2 . . . . . . Drone Launches . | . . . . . . . . . . . . . . . . Drone Recoveries . | . . . . . . . . . . . . . . . . Exploration | -11 -10 -10 -9 -9 -8 -7 -7 -7 -7 -6 -6 -6 -6 -6 -6 ------------- Run | Scr Mat Min Mat Sto Mat Fac Low Low Zio Pro Fac Ext Cet Arc Hub Turns Passed 19683 | 94 1019 875 978 1349 2128 3021 646 945 1977 1057 1650 1565 498 268 1613 Spaces Moved 9540 | 44 545 438 387 675 927 1568 317 462 1060 390 845 513 253 141 975 Core 52 | 11 . . . . . . . . . . . . . . 41 Treads 4496 | 33 545 438 387 611 55 . . . 92 390 845 513 253 141 193 Legs 4551 | . . . . 64 872 1127 317 462 968 . . . . . 741 Wheels . | . . . . . . . . . . . . . . . . Hover 441 | . . . . . . 441 . . . . . . . . . Flight . | . . . . . . . . . . . . . . . . Fastest Speed 50 | 50 160 160 160 160 120 112 190 120 120 160 160 160 160 160 50 Average Speed 158 | 166 160 160 160 164 164 138 190 171 183 160 160 160 160 160 126 Slowest Speed 400 | 250 160 160 160 330 330 260 190 190 260 160 360 160 160 160 400 Overloaded Moves . | . . . . . . . . . . . . . . . . Propulsion Burnouts . | . . . . . . . . . . . . . . . . Robots Hopped . | . . . . . . . . . . . . . . . . Cave-ins Triggered . | . . . . . . . . . . . . . . . . Exploration Rate (%) 60 | 4 93 94 23 94 67 27 51 63 83 50 17 70 68 85 76 Regions Visited 15 Branch Regions 10 Pre-discovered Areas 4 | . . 1 . 1 . . . 1 1 . . . . . . Known Exits Taken 12 | . . . 1 1 1 1 1 1 1 1 1 1 1 1 . Unknown Exits Taken 3 | 1 1 1 . . . . . . . . . . . . . Scrap Searched 13 | . . 1 . . . . 4 2 4 2 . . . . . Spaces Dug 93 | . . . 6 2 . 4 . 3 . 1 66 . . . 11 Terrain Destroyed 688 | . 23 17 6 2 253 76 . 14 . 1 81 1 1 6 207 Melee 12 | . . . 6 2 . 4 . . . . . . . . . Projectile 71 | . . . . . . . . 14 . 1 19 1 1 6 29 AOE 605 | . 23 17 . . 253 72 . . . . 62 . . . 178 Terrain Rammed . | . . . . . . . . . . . . . . . . Walls Destroyed . | . . . . . . . . . . . . . . . . Machines Disabled . | . . . . . . . . . . . . . . . . Actions | -11 -10 -10 -9 -9 -8 -7 -7 -7 -7 -6 -6 -6 -6 -6 -6 --------- Run | Scr Mat Min Mat Sto Mat Fac Low Low Zio Pro Fac Ext Cet Arc Hub Total 13127 | 55 627 571 672 800 1290 2242 349 572 1088 809 1106 1169 337 169 1271 Wait 2362 | . 6 91 180 15 123 439 17 68 5 399 185 554 56 19 205 Move 9525 | 43 544 437 386 674 926 1567 316 461 1059 389 844 512 252 140 975 Hop . | . . . . . . . . . . . . . . . . Pick Up 105 | 2 19 5 12 6 10 27 . . 3 1 13 . 4 . 3 Fast Attach 115 | 7 3 3 6 13 31 15 2 . 5 2 11 1 7 2 7 Attach 36 | . . 1 4 1 6 12 . 3 . 1 2 . . . 6 Detach 5 | . . . . 1 . . . . 3 1 . . . . . Swap 56 | . 8 4 6 4 10 15 . . 6 . 1 . . . 2 Drop 185 | . 12 8 21 18 25 39 2 . 6 4 23 . 11 . 16 Fire 578 | 3 35 22 21 39 158 106 12 21 1 12 27 49 7 8 57 Melee 71 | . . . 36 27 . 8 . . . . . . . . . Ram . | . . . . . . . . . . . . . . . . Kick 1 | . . . . . . 1 . . . . . . . . . Crush . | . . . . . . . . . . . . . . . . Escape Stasis 13 | . . . . . . 13 . . . . . . . . . Rewire 66 | . . . . 2 1 . . 10 . . . 53 . . . Trap 9 | . . . . . . . . 9 . . . . . . . Miscellaneous . | . . . . . . . . . . . . . . . . Route ------- -11/Scrapyard -10/Materials (discovered 4 exits: *Mat x3 / [*Min]) -10/Mines (discovered 2 exits: *Mat x2) -9/Materials (discovered 2 exits: *Mat / *Sto) -9/Storage -8/Materials -7/Factory -7/Lower Caves -7/Lower Caves -7/Zion -6/Proximity Caves -6/Factory (discovered 3 exits: *Fac / *Ext x2) -6/Extension (discovered 2 exits: *Fac / *Cet) -6/Cetus (discovered 2 exits: *Fac / *Arc) -6/Archives (discovered 3 exits: *Fac / *Hub x2) -6/Hub_04(d) (discovered 2 exits: *Fac x2) History --------- Turn | Location | Event 15 | -11/Scrapyard | Discovered new exit (range 16) 95 | -11/Scrapyard | Entered Materials 308 | -10/Materials | Discovered new exit (range 10) 314 | -10/Materials | Build established: Mutant 664 | -10/Materials | Discovered new exit (range 10) 821 | -10/Materials | Discovered new exit (range 16) 1105 | -10/Materials | Discovered new exit (range 7) 1114 | -10/Materials | Entered Mines 1165 | -10/Mines | Found a damaged Exp. Sensor Array with a note attached 1169 | -10/Mines | Found Prototype Device 1169 | -10/Mines | Identified Exp. Sensor Array 1188 | -10/Mines | Learned location of Storage (-9) 1249 | -10/Mines | Excavation squad dispatched 1249 | -10/Mines | A large section of the Mines collapsed 1261 | -10/Mines | Discovered new exit (range 9) 1760 | -10/Mines | Discovered new exit (range 16) 1804 | -10/Mines | Received a Mining Laser from a helpful Derelict 1989 | -10/Mines | Entered Materials 1989 | -9/Materials | Accompanied by 1 ally 1989 | -9/Materials | Evolved 2 slots: Utility x2 1989 | -9/Materials | Discovered new exit (range 6) 2124 | -9/Materials | Identified exit to Storage 2403 | -9/Materials | Build established: Scavenger-Mutant 2809 | -9/Materials | Discovered new exit (range 14) 2967 | -9/Materials | Entered Storage 2977 | -9/Storage | Build established: Mutant 3226 | -9/Storage | Discovered new exit (range 19) 3261 | -9/Storage | Assisted by bots powering up and referring to "LRC-V3" 3374 | -9/Storage | Learned location of Armory (-3) 3558 | -9/Storage | Build established: Commander-Mutant 3591 | -9/Storage | Garrison activated, responded to threat 3635 | -9/Storage | Core integrity fell below 50% 4160 | -9/Storage | Build established: Scavenger-Mutant 4230 | -9/Storage | Core integrity fell below 20% 4311 | -9/Storage | Identified exit to Materials 4316 | -9/Storage | Entered Materials 4316 | -8/Materials | Evolved 2 slots: Propulsion x1, Utility x1 5060 | -8/Materials | Lost 3 parts (1n2w) 5425 | -8/Materials | Core integrity fell below 50% 5450 | -8/Materials | Lost 3 parts (1p1n1w) 5660 | -8/Materials | Build established: Mutant 6017 | -8/Materials | Core integrity fell below 20% 6045 | -8/Materials | Lost 3 parts (1u2w) 6316 | -8/Materials | First assault squad dispatched 6391 | -8/Materials | Discovered new exit (range 20) 6433 | -8/Materials | Identified exit to Factory 6444 | -8/Materials | Entered Factory 6444 | -7/Factory | Evolved 2 slots: Utility x2 6640 | -7/Factory | Build established: Scavenger-Mutant 7074 | -7/Factory | Build established: Mutant 7080 | -7/Factory | Lost 4 parts (1p1n1u1w) 7844 | -7/Factory | Discovered new exit (range 11) 7958 | -7/Factory | Identified exit to Lower Caves 8192 | -7/Factory | Build established: Scavenger-Mutant 8245 | -7/Factory | Fabricated Exp. Sensor Array (x1) 8631 | -7/Factory | Garrison activated, responded to threat 8779 | -7/Factory | Build established: Mutant 9171 | -7/Factory | Fabricated Exp. Sensor Array? 9465 | -7/Factory | Entered Lower Caves 9719 | -7/Lower Caves | Encountered a Warlord checkpoint 10020 | -7/Lower Caves | Discovered new exit (range 15) 10046 | -7/Lower Caves | Identified exit to Lower Caves 10111 | -7/Lower Caves | Entered another Lower Caves area 10226 | -7/Lower Caves | Encountered a Warlord checkpoint 10518 | -7/Lower Caves | Core integrity fell below 50% 10737 | -7/Lower Caves | Learned location of Extension (-6) 10939 | -7/Lower Caves | Discovered new exit (range 9) 10948 | -7/Lower Caves | Identified exit to Zion 11056 | -7/Lower Caves | Entered Zion 11137 | -7/Zion | Discovered new exit (range 16) 11270 | -7/Zion | Gained Derelict followers 11323 | -7/Zion | System corruption cleaned by Quarantine Array 11863 | -7/Zion | Learned location of Warlord (-5) 11994 | -7/Zion | Received a visual enhancement algorithm 12368 | -7/Zion | Given the Hacking Drone Bay 12368 | -7/Zion | Found Prototype Device 12623 | -7/Zion | Identified Hacking Drone Bay 12634 | -7/Zion | Visited the Megawrench Repair Shop 12634 | -7/Zion | Megawrench repaired 9 parts 13030 | -7/Zion | Identified exit to Proximity Caves 13033 | -7/Zion | Entered Proximity Caves 13033 | -6/Proximity Caves | Accompanied by 5 allies 13155 | -6/Proximity Caves | Build established: Derelict-Mutant 13231 | -6/Proximity Caves | Acquired the password to a Derelict Tinkerer's latest research 13240 | -6/Proximity Caves | Found Prototype Special Weapon 13352 | -6/Proximity Caves | Caught by Unaware searching for contraband prototypes 13460 | -6/Proximity Caves | Identified Molecular Deconstructor 13748 | -6/Proximity Caves | Caught by Unaware searching for contraband prototypes 14017 | -6/Proximity Caves | Discovered new exit (range 16) 14089 | -6/Proximity Caves | Identified exit to Factory 14090 | -6/Proximity Caves | Entered Factory 14090 | -6/Factory | Accompanied by 1 ally 14090 | -6/Factory | Evolved 2 slots: Utility x1, Weapon x1 14091 | -6/Factory | Identified exit to Extension 15225 | -6/Factory | Build established: Skirmisher 15272 | -6/Factory | Discovered new exit (range 15) 15306 | -6/Factory | Identified exit to Factory 15726 | -6/Factory | Discovered exit to Extension (range 9) 15740 | -6/Factory | Entered Extension 15874 | -6/Extension | Rescued a captive Derelict 15874 | -6/Extension | Rescued a captive Derelict 15951 | -6/Extension | Rescued a captive Derelict 15951 | -6/Extension | Rescued a captive Derelict 16053 | -6/Extension | Rescued a captive Derelict 16055 | -6/Extension | Rescued a captive Derelict 16259 | -6/Extension | Rescued a captive Derelict 16272 | -6/Extension | Rescued A7 16345 | -6/Extension | Rescued a captive Derelict 16345 | -6/Extension | Rescued a captive Derelict 16372 | -6/Extension | Rescued a captive Derelict 16373 | -6/Extension | Rescued a captive Derelict 16409 | -6/Extension | Rescued a captive Derelict 16416 | -6/Extension | Spotted B-75 Beast 16422 | -6/Extension | Spotted B-75 Beast 16435 | -6/Extension | Allies destroyed B-75 Beast 16449 | -6/Extension | Allies destroyed B-75 Beast 16490 | -6/Extension | Rescued a captive Derelict 16622 | -6/Extension | Repaired Imp. Heavy Armor Plating 16659 | -6/Extension | Rescued a captive Derelict 16661 | -6/Extension | Rescued a captive Derelict 16795 | -6/Extension | Build established: Commander-Mutant 17032 | -6/Extension | Rescued a captive Derelict 17034 | -6/Extension | Rescued a captive Derelict 17108 | -6/Extension | Rescued a captive Derelict 17110 | -6/Extension | Rescued a captive Derelict 17232 | -6/Extension | Rescued a captive Derelict 17265 | -6/Extension | Discovered exit to Factory (range 10) 17266 | -6/Extension | Discovered new exit (range 6) 17279 | -6/Extension | Identified exit to Cetus 17305 | -6/Extension | Entered Cetus 17305 | -6/Cetus | Accompanied by 15 allies (A7) 17310 | -6/Cetus | Acquired a Cetus Manufacturing Module code from A7 17326 | -6/Cetus | Spotted Cetus Guard 17326 | -6/Cetus | Spotted Cetus Guard 17328 | -6/Cetus | Spotted Cetus Guard 17332 | -6/Cetus | Spotted Cetus Guard 17342 | -6/Cetus | Allies destroyed Cetus Guard 17347 | -6/Cetus | Allies destroyed Cetus Guard 17348 | -6/Cetus | Allies destroyed Cetus Guard 17349 | -6/Cetus | Allies destroyed Cetus Guard 17430 | -6/Cetus | Started Cetus Manufacturing Module 17455 | -6/Cetus | Manufactured an Enhanced Grunt 17480 | -6/Cetus | Manufactured an Enhanced Grunt 17505 | -6/Cetus | Manufactured an Enhanced Grunt 17530 | -6/Cetus | Manufactured an Enhanced Grunt 17547 | -6/Cetus | Cetus Manufacturing Module disabled 17596 | -6/Cetus | Build established: Commander-Skirmisher 17597 | -6/Cetus | Discovered new exit (range 16) 17625 | -6/Cetus | Spotted Cetus Guard 17626 | -6/Cetus | Spotted Cetus Guard 17629 | -6/Cetus | Spotted Cetus Guard 17633 | -6/Cetus | Allies destroyed Cetus Guard 17634 | -6/Cetus | Spotted Cetus Guard 17639 | -6/Cetus | Allies destroyed Cetus Guard 17646 | -6/Cetus | Discovered exit to Factory (range 16) 17648 | -6/Cetus | Allies destroyed Cetus Guard 17659 | -6/Cetus | Allies destroyed Cetus Guard 17660 | -6/Cetus | Met Revision 17 17792 | -6/Cetus | Identified exit to Archives 17803 | -6/Cetus | Entered Archives 17803 | -6/Archives | Accompanied by 7 allies (A7) 17895 | -6/Archives | Discovered new exit (range 16) 17916 | -6/Archives | Unable to access archive contents 17924 | -6/Archives | Discovered new exit (range 16) 17935 | -6/Archives | Unable to access archive contents 17950 | -6/Archives | Discovered exit to Factory (range 16) 17961 | -6/Archives | Unable to access archive contents 18064 | -6/Archives | Identified exit to Hub_04(d) 18071 | -6/Archives | Entered Hub_04(d) 18071 | -6/Hub_04(d) | Accompanied by 4 allies 18178 | -6/Hub_04(d) | Build established: Scavenger-Skirmisher 19053 | -6/Hub_04(d) | Discovered exit to Factory (range 8) 19193 | -6/Hub_04(d) | Discovered exit to Factory (range 16) 19557 | -6/Hub_04(d) | Network Hub disabled 19598 | -6/Hub_04(d) | Spotted Lightning 19602 | -6/Hub_04(d) | System corruption reached 10% 19613 | -6/Hub_04(d) | Network Hub disabled 19630 | -6/Hub_04(d) | Spotted Lightning 19635 | -6/Hub_04(d) | Spotted Lightning 19640 | -6/Hub_04(d) | Spotted Lightning 19645 | -6/Hub_04(d) | Spotted Lightning 19647 | -6/Hub_04(d) | Spotted Lightning 19660 | -6/Hub_04(d) | Core integrity fell below 50% 19680 | -6/Hub_04(d) | Network Hub disabled 19681 | -6/Hub_04(d) | Core integrity fell below 20% 19681 | -6/Hub_04(d) | System corruption reached 30% 19684 | -6/Hub_04(d) | Destroyed by Lightning with EMDS Last Messages --------------- 19659_ EMDS Slug penetrates Control Node. 19659_ Control Node disabled. 19660_ Dropped Gatling Laser. 19662_ EMDS Slug penetrates Wall. 19666_ IQ 19680_ EMDS Slug penetrates Earth. 19680_ Penetrated by EMDS Slug. 19680_ EMDS Slug penetrates Earth. 19681_ I-47 Archangel system terminally corrupted. 19681_ Dropped Gatling Laser. 19682_ Penetrated by EMDS Slug. 19682_ EMDS Slug penetrates Earth. 19683_ Penetrated by EMDS Slug. 19683_ EMDS Slug penetrates Earth. 19684_ Penetrated by EMDS Slug. Map ----- +----------------------------------------------------+ | ###########??????????????????????????# "" ### | | # !!! +?????????????????????????? / " #?? | | #" ]! #????????????????????????? # #" #?? | | #" ]! #?????????????????????? ?"" # #" ##? | | #" ! #?????????????????????? # #" #? | | #T #?????????????????????? """ # #" #? | | #" " " " #?????????????????????# + " #? | | #" " " " ###########???????##### """ # ##! ### | | #" " " " # #???????? # # ## !" | | # # !#???????? + "" # ## " | | ####+##### ########## # + ##"" """ | | # """" # # # "" #] # " | | + """" # ! # # # [ # " | | # """" # # # " #![[# " | | ####+###+# "" " # * # " #[[ # " | | # # ! / ;;!!= """" | | # ########### ! " | | # #?????????# [ " | | # #?????????# ;;"""""""""" | | # #?????????#/ # i; ### # "" | | # #?????????# # ; ### ; ] "" | | # #?????????#####;;;;; ; ; "" | | # #???????????# ;hh; ; """"""" | | # #???????????# ;;;;;;;;;;;;;; # | | ##########???????????# ; h ;; # | | ?????????????????????# ;@!|* ;; ####### | | ?????????????????????# ; ;;######?????? | | ?????????????????????# ; h ; #?????????? | | ????????????????????## ; h ; #?????????? | | ????????????????????# ; h ; #?????????? | | ??????????????????# ; = ; #?????????? | | ??????????????????## ; [ % !; #?????????? | | #??????????????????# ; !! ; #?????????? | | #??????????????????## ; [%! ; #?????????? | | ???????????????????# ;;;;;;;;;;;;; #?????????? | | ??????????????????? # #?????????? | | ??????????????????##### ###?????????? | | ??????????????????????### # #########???????????? | | ????????????????????????###? #???????????????????? | | ????????????????????????????##???????????????????? | | ?????????????????????????????????????????????????? | | ?????????????????????????????????????????????????? | | ?????????????????????????????????????????????????? | | ?????????????????????????????????????????????????? | | ?????????????????????????????????????????????????? | | ?????????????????????????????????????????????????? | | ?????????????????????????????????????????????????? | | | | | | | +----------------------------------------------------+ Best States ------------- Heat Dissipation 64 Energy Generation 17 Energy Capacity 300 Matter Stores 300 Matter Capacity 300 Sight Range 20 Robot Scan Range 20 Terrain Scan Density 10 Armor Coverage 600 Resistance: EM 20 Propulsion Shielding 66 Weapon Shielding 66 Weapon Cycling 15 Evasion (%) 55 Targeting Accuracy 6 Target Analysis 5 Armor Integrity Analysis 30 Recoil Reduction 3 Kinecelleration 30 Offensive Hacking 10 Item Schematics ----------------- Exp. Sensor Array | -8/Materials | Scanalyzed Imp. Carbon-fiber Leg | -7/Zion | Archive Lgt. Fission Core | -7/Zion | Archive Angular Momentum Engine | -7/Zion | Archive Mak. Flight Unit | -7/Zion | Archive Mak. Hover Unit | -7/Zion | Archive Mak. Terrain Scan Processor | -7/Zion | Archive Antigrav System | -7/Zion | Archive Adv. System Restoration Module | -7/Zion | Archive Chainsword | -7/Zion | Archive Adv. Melee Analysis Suite | -7/Zion | Archive System Restoration Module | -7/Zion | Archive Imp. EM Pulse Cannon | -7/Zion | Archive Matter Compressor | -7/Zion | Archive Imp. Shield Generator | -7/Zion | Archive Robot Schematics ------------------ A-02 Transporter | -7/Zion | Archive S-27 Virus | -7/Zion | Archive Y-54 Guardian | -7/Zion | Archive H-88 Terminator | -7/Zion | Archive Fabricated ------------ Exp. Sensor Array | x1 | -7/Factory Exp. Sensor Array | x1 | -7/Factory Alien Tech Used ----------------- None Achievements -------------- None Challenges ------------ None Game ------ Seed BattleSystemSuperbattery Manual? 0 Play Time 01:56:15 Cumulative 291.8 hours Start 2022.05.28 @ 10:10:12 End 2022.05.28 @ 17:07:50 Sessions 3 Manual Loads 0 Difficulty Rogue Special Mode None Game No. 532 Rogue 377 Adventurer 148 Explorer 7 Win Type - Total 10 Types 8/0/1/1/0/0/0/0/0 Lore% 72 Gallery% 85 Achievement% 66 Wizard Run 0 Options --------- ASCII 0 Keyboard 0 Movement Numpad Keybinds 0 Fullscreen 1 Font 18/SmallcapsGlow Map View 76x50 Tactical HUD 1 Map Filters NONE Filters NONE Steam 1 RUN: 0af73155-df5b-492c-a8dd-905bde92ea28